bitfinex/quotes_ETHUSD_20241215
["timestamp","ask_amount","ask_price","bid_price","bid_amount"]
[1734263682773,2.58165,3873.5,3873.2,2.22556722]
[1734263682973,2.58165,3873.5,3873.3,0.89022689]
[1734263683152,2.58165,3873.5,3873.1,1.45982098]
[1734263683483,2.58165,3873.5,3873.2,2.22563936]
[1734263683687,2.58165,3873.5,3873.3,0.89025574]
[1734263683984,2.58165,3873.5,3873.1,1.45982098]
[1734263684187,2.58165,3873.5,3873.2,2.60832415]
[1734263684495,2.58165,3873.5,3873.3,2.22572406]
[1734263684647,2.58165,3873.5,3873.2,0.38260009]
[1734263684852,2.58165,3873.5,3873.3,2.22573253]
[1734263685050,2.58165,3873.5,3873.4,0.89029301]
[1734263685273,2.58158,3873.6,3873.4,0.89029301]
[1734263685484,2.58158,3873.6,3873.4,1.33533882]
[1734263685692,2.58158,3873.6,3873.5,0.08332376]
[1734263686095,2.58158,3873.6,3873.1,1.07672312]
[1734263686303,2.58137,3873.9,3873.5,0.08333366]
[1734263686591,2.58164,3873.5,3873.1,1.07672312]
[1734263686805,2.58164,3873.5,3873.2,2.2263453]
[1734263686956,2.58164,3873.5,3873.3,2.2263453]
[1734263687159,3.35914,3873.5,3873.4,0.89053812]
[1734263689890,0.7775,3874.1,3873.4,2.22640215]
[1734263690204,2.58147,3873.8,3873.5,0.89053812]
[1734263690498,0.7775,3874.1,3873.3,1.07672312]
[1734263690698,2.58145,3873.8,3873.4,2.2255218]
[1734263690872,2.58145,3873.8,3873.5,0.89021317]
[1734263691077,2.58145,3873.8,3873.3,1.07672312]
[1734263691279,2.58145,3873.8,3873.4,2.22554703]
[1734263691592,2.58145,3873.8,3873.5,0.89021881]
[1734263691796,2.58145,3873.8,3873.3,1.07672312]
[1734263691974,2.58145,3873.8,3873.4,2.22559305]
[1734263692170,2.58145,3873.8,3873.5,2.2254368]
[1734263692371,2.58145,3873.8,3873.3,1.07672312]
[1734263692575,2.58132,3874.0,3873.4,2.22524083]
[1734263692795,2.58132,3874.0,3873.3,1.4249939]
[1734263692796,2.58132,3874.0,3873.5,4.05386395]
[1734263692975,2.58132,3874.0,3873.6,2.22524083]
[1734263693163,2.58132,3874.0,3873.7,0.89011327]
[1734263693374,2.58132,3874.0,3873.5,1.82862312]
[1734263693697,0.7775,3874.1,3873.6,2.22508285]
[1734263693901,2.58138,3873.9,3873.7,0.89003314]
[1734263694101,2.58138,3873.9,3873.5,0.7519]
[1734263694284,2.58138,3873.9,3873.6,2.22521092]
[1734263694473,2.58138,3873.9,3873.7,0.89008437]
[1734263694675,2.58138,3873.9,3873.5,1.82862312]
[1734263694875,2.58138,3873.9,3873.6,2.22517873]
[1734263695089,2.58138,3873.9,3873.7,0.89007149]
[1734263695304,2.58138,3873.9,3873.5,1.82862312]
[1734263695479,2.58138,3873.9,3873.6,2.2251697]
[1734263695676,2.58138,3873.9,3873.7,0.89006788]
[1734263695996,2.58138,3873.9,3873.5,1.82862312]
[1734263696199,2.58138,3873.9,3873.6,2.22513595]
[1734263696371,2.58138,3873.9,3873.7,0.89005343]
[1734263696574,2.58138,3873.9,3873.5,1.82862312]
[1734263696808,2.58138,3873.9,3873.6,2.22510918]
[1734263697070,2.58138,3873.9,3873.7,0.89004367]
[1734263697191,2.58138,3873.9,3873.5,2.20782098]
[1734263697387,2.58138,3873.9,3873.6,2.22518686]
[1734263697591,2.58138,3873.9,3873.7,2.22518686]
[1734263697788,2.58138,3873.9,3873.5,2.20782098]
[1734263697992,2.58138,3873.9,3873.6,2.2252314]
[1734263698192,2.58138,3873.9,3873.7,0.89009256]
[1734263698389,2.58138,3873.9,3873.5,1.82862312]
[1734263698616,2.58138,3873.9,3873.6,2.22523055]
[1734263698805,2.58138,3873.9,3873.7,0.89009222]
[1734263698995,2.58138,3873.9,3873.5,1.82862312]
[1734263699195,2.58138,3873.9,3873.6,2.22522083]
[1734263699515,2.58138,3873.9,3873.7,2.22522083]
[1734263699719,0.7775,3874.1,3873.8,0.89008564]
[1734263699905,2.58125,3874.1,3873.5,1.82862312]
[1734263700217,2.58125,3874.1,3873.6,3.64623907]
[1734263700395,0.7927,3874.4,3873.7,2.22514517]
[1734263700396,2.58111,3874.3,3873.7,2.22514517]
[1734263700592,2.58111,3874.3,3873.8,2.22514517]
[1734263700797,2.58111,3874.3,3873.9,0.89005807]
[1734263701014,2.58111,3874.3,3873.9,0.08300127]
[1734263701387,2.58111,3874.3,3873.6,1.4210939]
[1734263701586,2.58111,3874.3,3874.0,0.0829605]
[1734263701792,2.58111,3874.3,3873.6,1.07672312]
[1734263702000,2.58111,3874.3,3874.1,0.08276626]
[1734263702222,2.58111,3874.3,3873.6,1.07672312]
[1734263702516,2.58111,3874.3,3874.2,0.0827255]
[1734263702717,2.58111,3874.3,3873.6,1.07672312]
[1734263703046,2.58111,3874.3,3873.7,2.56923409]
[1734263703183,2.58111,3874.3,3873.8,2.22486331]
[1734263703384,2.58111,3874.3,3873.7,0.08292935]
[1734263703591,2.58111,3874.3,3873.9,0.0828478]
[1734263703840,2.58111,3874.3,3873.8,0.08288858]
[1734263703991,2.58111,3874.3,3874.0,0.08280703]
[1734263704193,3.66386047,3874.7,3874.0,0.90000703]
[1734263704194,0.819,3874.7,3874.0,0.90000703]
[1734263704390,2.58075,3874.9,3874.1,3.38379526]
[1734263704720,2.58075,3874.9,3874.2,3.301029]
[1734263704914,2.58075,3874.9,3874.3,2.30693615]
[1734263705117,2.58057,3875.2,3874.5,0.8172]
[1734263705361,2.58067,3875.0,3874.6,0.8897695]
[1734263705667,2.58067,3875.0,3874.6,0.97211413]
[1734263705980,2.58067,3875.0,3874.6,0.08234463]
[1734263706478,2.58067,3875.0,3874.5,0.8172]
[1734263706638,2.58067,3875.0,3874.7,0.08230387]
[1734263706850,2.58067,3875.0,3874.6,0.08234463]
[1734263707036,2.58067,3875.0,3874.8,0.08226312]
[1734263707247,2.58067,3875.0,3874.5,0.8172]
[1734263707248,2.58067,3875.0,3874.7,0.08199601]
[1734263707456,2.58067,3875.0,3874.9,0.08191452]
[1734263707621,2.58067,3875.0,3874.8,0.08195526]
[1734263707845,2.58067,3875.0,3874.9,0.08191452]
[1734263708375,2.58051,3875.2,3874.5,0.8172]
[1734263708601,2.58051,3875.2,3874.6,0.08203675]
[1734263709948,1.08297047,3876.1,3875.0,0.7583]
[1734263710265,0.8276,3876.1,3875.1,0.41524842]
[1734263710465,0.8276,3876.1,3875.1,5.21732005]
[1734263710661,3.40732,3876.4,3875.3,0.7583]
[1734263710869,3.40732,3876.4,3875.4,0.88770267]
[1734263711194,3.40732,3876.4,3875.5,2.65089032]
[1734263711347,3.40732,3876.4,3875.6,2.21909037]
[1734263711550,3.40732,3876.4,3875.7,0.08144465]
[1734263711754,3.40732,3876.4,3875.5,0.43179995]
[1734263711997,3.40732,3876.4,3875.6,0.08082321]
[1734263712508,2.57978,3876.3,3875.3,0.7583]
[1734263712658,2.57978,3876.3,3875.7,0.08078247]
[1734263712858,2.57984,3876.2,3875.3,0.7583]
[1734263713089,2.57984,3876.2,3875.8,0.08074174]
[1734263713317,2.57984,3876.2,3875.3,0.7583]
[1734263713676,2.57984,3876.2,3875.4,0.08090469]
[1734263713911,2.58002,3876.0,3875.4,0.08090469]
[1734263714267,2.58005,3875.9,3875.4,0.08090469]
[1734263714505,0.8276,3875.8,3875.4,0.08090469]
[1734263714701,2.58018,3875.7,3875.0,0.7583]
[1734263714881,2.58018,3875.7,3875.5,0.08043849]
[1734263715064,2.58018,3875.7,3875.0,0.7583]
[1734263715411,2.58026,3875.6,3875.1,0.08060147]
[1734263717413,2.58033,3875.5,3875.1,0.08060147]
[1734263717795,2.58011,3875.8,3875.0,0.7583]
[1734263718180,2.58011,3875.8,3875.1,0.08080428]
[1734263722591,0.8276,3876.2,3875.1,0.08080428]
[1734263722801,2.58028,3875.6,3875.1,0.08080428]
[1734263725430,0.8276,3876.0,3875.1,0.08080428]
[1734263725631,2.58018,3875.7,3875.1,0.08080428]
[1734263726151,2.58004,3875.9,3875.2,0.7583]
[1734263726798,2.58004,3875.9,3875.3,0.08062822]
[1734263729027,2.58014,3875.8,3875.3,0.08062822]
[1734263729533,2.58,3876.0,3875.2,0.7583]
[1734263729697,2.58,3876.0,3875.4,0.08059832]
[1734263729893,2.58005,3875.9,3875.2,0.7583]
[1734263730297,2.58005,3875.9,3875.3,0.08072868]
[1734263739048,0.7728,3875.8,3875.3,0.08072868]
[1734263739253,2.58011,3875.8,3875.3,0.08072868]
[1734263739458,2.58011,3875.8,3875.2,0.7583]
[1734263739641,2.58011,3875.8,3875.4,0.08060386]
[1734263739842,2.58011,3875.8,3875.3,0.0806446]
[1734263740053,2.58011,3875.8,3875.2,0.7583]
[1734263740247,2.58011,3875.8,3875.4,0.08060386]
[1734263740448,2.58011,3875.8,3875.3,0.08063966]
[1734263740746,2.58011,3875.8,3875.2,0.7583]
[1734263740952,2.58011,3875.8,3875.3,0.08063966]
[1734263741249,2.58011,3875.8,3875.2,0.7583]
[1734263741582,2.58011,3875.8,3875.4,0.08059891]
[1734263741884,2.58011,3875.8,3875.2,0.7583]
[1734263742386,2.58011,3875.8,3875.3,0.08063966]
[1734263742607,2.58011,3875.8,3875.2,0.7583]
[1734263742806,0.7728,3876.1,3875.4,0.0806187]
[1734263742807,2.58024,3875.6,3875.4,0.0806187]
[1734263743023,2.58024,3875.6,3875.2,0.7583]
[1734263743024,2.58024,3875.6,3875.3,0.08065944]
[1734263743167,0.7728,3876.1,3875.2,0.7583]
[1734263743480,2.58037,3875.4,3875.3,0.08065944]
[1734263743665,3.35317,3875.4,3875.3,0.08065944]
[1734263743873,2.58051,3875.2,3874.7,0.8218]
[1734263744226,2.58051,3875.2,3874.8,0.07818359]
[1734263745100,0.7728,3876.0,3874.8,0.07818359]
[1734263745409,2.5795,3876.8,3875.0,0.8218]
[1734263745410,2.58011,3875.8,3875.0,0.8218]
[1734263745582,2.57998,3876.0,3875.2,0.8218]
[1734263745782,2.57992,3876.1,3875.3,0.07807383]
[1734263746108,2.58001,3876.0,3875.4,0.8218]
[1734263746270,2.58001,3876.0,3875.4,1.0194597]
[1734263746475,2.58001,3876.0,3875.5,0.0779874]
[1734263748603,2.58005,3875.9,3875.5,0.0779874]
[1734263749373,3.35292,3875.8,3875.5,0.0779874]
[1734263749614,3.35292,3875.8,3875.1,1.07672312]
[1734263749615,2.58012,3875.8,3875.1,1.07672312]
[1734263749792,2.58012,3875.8,3875.6,0.0778032]
[1734263750041,2.58012,3875.8,3875.2,1.07672312]
[1734263750240,2.58012,3875.8,3875.7,0.07776741]
[1734263750723,2.58012,3875.8,3875.3,1.4280839]
[1734263750724,2.58012,3875.8,3875.3,1.07672312]
[1734263750924,2.58012,3875.8,3875.4,2.22168493]
[1734263751315,0.7728,3876.1,3875.5,0.7868]
[1734263751576,2.57991,3876.1,3875.6,2.2215427]
[1734263751876,2.57991,3876.1,3875.7,2.22172278]
[1734263752375,2.57979,3876.3,3875.8,0.966349]
[1734263752571,2.57979,3876.3,3875.8,0.07767503]
[1734263752725,0.7615,3876.5,3875.9,0.88878507]
[1734263752930,2.57984,3876.3,3876.0,0.07752927]
[1734263753179,2.57991,3876.1,3875.7,1.07672312]
[1734263753358,2.57991,3876.1,3875.5,2.40188468]
[1734263753359,2.57991,3876.1,3875.8,2.22197025]
[1734263753540,2.57991,3876.1,3875.9,0.8887881]
[1734263753730,2.57991,3876.1,3876.0,0.07752927]
[1734263754231,2.57979,3876.3,3875.6,1.07672312]
[1734263754433,2.57979,3876.3,3876.0,0.0774216]
[1734263754630,2.57979,3876.3,3875.7,1.07672312]
[1734263754871,2.57979,3876.3,3876.1,0.07719787]
[1734263755087,2.57964,3876.6,3876.0,0.7868]
[1734263755291,2.57964,3876.6,3876.2,0.07715715]
[1734263755494,2.57965,3876.5,3876.1,0.07719787]
[1734263755632,2.57965,3876.5,3876.3,0.07711643]
[1734263755831,2.57965,3876.5,3876.2,0.07715715]
[1734263756142,2.57965,3876.5,3876.3,0.07711643]
[1734263756328,2.57965,3876.5,3876.0,0.7868]
[1734263756523,2.57965,3876.5,3876.1,0.88938683]
[1734263756728,2.57965,3876.5,3876.1,0.07719787]
[1734263758762,2.57973,3876.4,3876.1,0.07719787]
[1734263760039,1.60153485,3876.9,3876.1,0.07719787]
[1734263760240,0.69874906,3876.8,3876.1,0.07719787]
[1734263760440,1.60153485,3876.9,3876.1,0.07719787]
[1734263760668,2.57965,3876.5,3876.1,0.07719787]
[1734263762362,2.57951,3876.7,3876.1,0.07719787]
[1734263762739,2.57958,3876.6,3876.1,0.07719787]
[1734263764443,2.57951,3876.7,3876.1,0.07719787]
[1734263764649,2.57951,3876.7,3876.1,0.27126997]
[1734263765167,2.57951,3876.7,3876.2,0.88892577]
[1734263765370,2.57951,3876.7,3876.1,0.27126997]
[1734263765554,2.57951,3876.7,3876.3,0.07675549]
[1734263765733,2.57951,3876.7,3876.2,0.07679621]
[1734263765928,2.57951,3876.7,3876.4,0.07671479]
[1734263766135,2.57951,3876.7,3876.3,0.07675549]
[1734263766330,2.57951,3876.7,3876.0,0.7868]
[1734263766530,2.57951,3876.7,3876.1,2.40853353]
[1734263766874,2.57959,3876.6,3876.2,0.07679621]
[1734263767569,2.57959,3876.6,3876.3,0.07675549]
[1734263767773,2.57959,3876.6,3876.0,0.7868]
[1734263768078,0.51856438,3876.9,3876.1,0.96576191]
[1734263768378,3.50109349,3876.8,3876.1,0.07683692]
[1734263768675,2.57979,3876.3,3876.1,0.07683692]
[1734263773081,2.57984,3876.2,3876.1,0.07683692]
[1734263773587,2.58005,3875.9,3875.6,1.07672312]
[1734263773797,2.58005,3875.9,3875.7,2.22294653]
[1734263774120,2.58005,3875.9,3875.8,2.22294653]
[1734263775661,2.58005,3875.9,3875.8,2.29973742]
[1734263776106,2.58005,3875.9,3875.8,0.07679089]
[1734263776317,2.58005,3875.9,3875.4,1.83982312]
[1734263776463,2.58005,3875.9,3875.8,0.07679089]
[1734263776662,2.58005,3875.9,3875.4,1.83982312]
[1734263776963,2.58005,3875.9,3875.8,0.07679089]
[1734263777293,0.7596,3876.3,3875.8,0.07679089]
[1734263777467,2.58004,3875.9,3875.4,1.83982312]
[1734263777662,2.58004,3875.9,3875.5,2.22285387]
[1734263777862,2.58004,3875.9,3875.6,0.88914155]
[1734263778104,2.58004,3875.9,3875.4,0.7631]
[1734263778303,2.58004,3875.9,3875.5,1.33371639]
[1734263778508,2.58004,3875.9,3875.6,0.88914426]
[1734263778666,2.58004,3875.9,3875.4,0.7631]
[1734263778865,2.58004,3875.9,3875.5,2.22282248]
[1734263779117,2.58004,3875.9,3875.6,0.88912899]
[1734263779325,2.58004,3875.9,3875.4,1.83982312]
[1734263779610,2.58004,3875.9,3875.5,2.22280728]
[1734263779797,2.58004,3875.9,3875.6,0.88912291]
[1734263780064,0.7596,3876.3,3875.4,0.7631]
[1734263780065,2.57991,3876.1,3875.4,1.83982312]
[1734263780208,2.57998,3876.0,3875.5,2.22265142]
[1734263780426,2.57998,3876.0,3875.6,2.22265142]
[1734263780625,2.57998,3876.0,3875.4,1.83982312]
[1734263780939,2.57998,3876.0,3875.5,2.22267753]
[1734263781107,2.57998,3876.0,3875.6,2.22267753]
[1734263781311,2.57998,3876.0,3875.4,1.83982312]
[1734263781512,2.57998,3876.0,3875.5,2.22268206]
[1734263781725,2.57998,3876.0,3875.6,2.22268206]
[1734263781892,2.57998,3876.0,3875.7,0.88907282]
[1734263782215,2.57998,3876.0,3875.5,1.07672312]
[1734263782376,2.57984,3876.2,3875.6,3.29923005]
[1734263782579,2.57984,3876.2,3875.7,2.22250693]
[1734263782788,2.57984,3876.2,3875.8,2.22250693]
[1734263783018,2.57984,3876.2,3875.9,0.88900277]
[1734263783202,2.57984,3876.2,3875.6,1.07672312]
[1734263783407,2.57984,3876.2,3875.7,2.22230613]
[1734263783713,2.57984,3876.2,3875.8,2.22230613]
[1734263783929,2.57984,3876.2,3875.9,0.88891488]
[1734263784133,2.57984,3876.2,3875.7,1.07672312]
[1734263784299,2.57984,3876.2,3875.8,2.22224046]
[1734263784499,2.57984,3876.2,3875.7,1.07672312]
[1734263784500,2.57984,3876.2,3875.9,2.22224046]
[1734263784732,2.57998,3876.0,3875.6,1.07672312]
[1734263784914,2.57998,3876.0,3875.7,0.88903662]
[1734263785097,2.57998,3876.0,3875.4,1.83982312]
[1734263785293,2.57998,3876.0,3875.5,2.22272695]
[1734263785525,2.57998,3876.0,3875.6,2.22272695]
[1734263785743,2.57998,3876.0,3875.4,1.83982312]
[1734263785903,2.57998,3876.0,3875.5,2.22265196]
[1734263786102,2.57998,3876.0,3875.6,2.22265196]
[1734263786345,2.57998,3876.0,3875.4,1.83982312]
[1734263786542,2.57998,3876.0,3875.5,2.22272952]
[1734263786841,2.57998,3876.0,3875.6,0.88909181]
[1734263787059,2.57998,3876.0,3875.4,1.83982312]
[1734263787356,2.57998,3876.0,3875.5,2.2227413]
[1734263787518,2.57998,3876.0,3875.6,0.88909652]
[1734263787853,2.57998,3876.0,3875.4,1.83982312]
[1734263788049,2.57998,3876.0,3875.5,2.22274662]
[1734263788353,2.57998,3876.0,3875.6,0.88909865]
[1734263788651,2.57998,3876.0,3875.4,1.83982312]
[1734263788850,2.57998,3876.0,3875.5,2.2227342]
[1734263789053,2.57998,3876.0,3875.6,0.88909368]
[1734263789209,2.57998,3876.0,3875.4,1.83982312]
[1734263789412,2.57998,3876.0,3875.5,2.22272775]
[1734263789655,1.27441837,3876.3,3875.6,0.8890911]
[1734263789958,3.34952,3875.8,3875.3,1.07672312]
[1734263790098,3.34952,3875.8,3875.4,2.22313096]
[1734263790304,3.34952,3875.8,3875.5,2.22313096]
[1734263790535,3.34952,3875.8,3875.2,1.07672312]
[1734263790747,3.34952,3875.8,3875.1,2.39328468]
[1734263790748,3.34952,3875.8,3875.6,0.07763564]
[1734263791055,3.34952,3875.8,3875.3,3.30033174]
[1734263791056,3.34952,3875.8,3875.7,0.0775949]
[1734263791464,3.34952,3875.8,3875.3,1.07672312]
[1734263791760,3.34951,3875.8,3875.7,0.0775949]
[1734263791906,2.58024,3875.7,3875.2,1.07672312]
[1734263792109,3.34951,3875.8,3875.7,0.0775949]
[1734263792308,2.58024,3875.7,3875.2,1.07672312]
[1734263792540,2.58024,3875.7,3875.3,2.22347807]
[1734263792727,2.58025,3875.6,3875.4,2.22347807]
[1734263793040,2.58025,3875.6,3875.2,1.07672312]
[1734263793262,2.58037,3875.4,3875.3,2.22346628]
[1734263793408,0.7778,3875.3,3874.8,1.07672312]
[1734263793611,2.58066,3875.0,3874.9,0.88959312]
[1734263793814,2.58071,3874.9,3874.6,1.07672312]
[1734263794011,2.58071,3874.9,3874.7,2.22433143]
[1734263794213,2.58071,3874.9,3874.5,1.07672312]
[1734263794554,2.58079,3874.8,3874.6,2.22359685]
[1734263794864,2.58079,3874.8,3874.4,1.07672312]
[1734263795162,2.58079,3874.8,3874.5,2.22367782]
[1734263795861,2.58079,3874.8,3874.6,0.8892187]
[1734263796154,2.58079,3874.8,3874.3,1.89992312]
[1734263796359,2.58079,3874.8,3874.4,2.22249647]
[1734263798343,2.58079,3874.8,3874.3,0.8232]
[1734263798655,2.58079,3874.8,3874.4,0.88853483]
[1734263800337,2.58079,3874.8,3874.3,0.8232]
[1734263800737,1.29312317,3875.3,3874.3,0.8232]
[1734263800933,2.58084,3874.7,3874.3,0.8232]
[1734263802234,2.58072,3874.9,3874.3,0.8232]
[1734263802428,2.58072,3874.9,3874.4,0.88790586]
[1734263803138,2.5808,3874.8,3874.4,0.88790586]
[1734263803337,2.5808,3874.8,3874.3,0.8232]
[1734263805077,2.58064,3875.0,3874.3,1.01319231]
[1734263805241,2.58071,3874.9,3874.3,1.01319231]
[1734263805437,0.7558,3875.1,3874.3,0.8232]
[1734263805772,2.58082,3874.8,3874.4,0.07541027]
[1734263806063,0.7558,3875.1,3874.4,0.07541027]
[1734263806236,2.58094,3874.6,3874.5,0.07574548]
[1734263806464,2.58094,3874.6,3874.3,0.8232]
[1734263806695,2.58097,3874.5,3874.4,0.07578623]
[1734263807069,2.58097,3874.5,3874.3,0.8232]
[1734263807265,2.58097,3874.5,3874.4,0.07578623]
[1734263807586,2.58097,3874.5,3874.3,0.8232]
[1734263807770,2.58097,3874.5,3874.4,0.07578623]
[1734263808174,2.58097,3874.5,3874.3,0.8232]
[1734263808478,2.58097,3874.5,3874.4,0.07578623]
[1734263808978,2.58097,3874.5,3874.3,0.8232]
[1734263809169,2.58097,3874.5,3874.4,0.07578623]
[1734263809564,2.58097,3874.5,3874.3,0.8232]
[1734263809792,2.58097,3874.5,3874.4,0.07578623]
[1734263810305,2.58127,3874.1,3873.7,1.03923992]
[1734263810799,2.58127,3874.1,3873.7,0.77]
[1734263811093,2.58132,3874.0,3873.7,0.77]
[1734263812455,2.58097,3874.5,3873.7,0.77]
[1734263812655,2.58117,3874.2,3873.7,0.77]
[1734263814719,0.7558,3874.6,3873.7,0.77]
[1734263815015,2.58134,3874.0,3873.7,0.77]
[1734263816012,2.58139,3873.9,3873.2,0.77]
[1734263816210,2.58139,3873.9,3873.3,0.8876184]
[1734263818163,2.58139,3873.9,3873.2,0.77]
[1734263820603,2.58139,3873.9,3873.3,0.07238403]
[1734263824603,2.58116,3874.3,3873.4,0.77]
[1734263824966,2.581,3874.5,3873.6,0.77]
[1734263825208,2.581,3874.5,3873.8,0.77]
[1734263825541,2.581,3874.5,3873.9,0.07262379]
[1734263826041,2.58105,3874.4,3873.9,0.07262379]
[1734263828858,0.5167141,3874.8,3873.9,0.07262379]
[1734263829072,2.58091,3874.6,3874.0,0.77]
[1734263829574,2.58091,3874.6,3874.1,0.07244831]
[1734263830841,0.30976241,3874.6,3874.1,0.07244831]
[1734263831154,0.8023,3874.7,3874.1,0.07244831]
[1734263831729,2.58114,3874.3,3874.1,0.07244831]
[1734263832163,2.58114,3874.3,3873.7,0.8122]
[1734263832366,2.58114,3874.3,3874.2,0.07246817]
[1734263832698,2.58114,3874.3,3873.7,0.8122]
[1734263832979,0.8023,3874.7,3873.7,0.8122]
[1734263833279,2.58118,3874.2,3873.8,0.07253335]
[1734263833572,2.58118,3874.2,3873.7,0.8122]
[1734263833722,2.58118,3874.2,3873.9,0.07249257]
[1734263833924,2.58118,3874.2,3873.8,0.07253335]
[1734263834122,2.58118,3874.2,3874.0,0.07245179]
[1734263834341,2.58118,3874.2,3873.7,0.8122]
[1734263834722,2.58118,3874.2,3873.8,0.07253335]
[1734263835126,2.58118,3874.2,3873.7,0.8122]
[1734263835351,2.58118,3874.2,3873.9,0.07249257]
[1734263835566,2.58118,3874.2,3873.7,0.8122]
[1734263835769,2.58118,3874.2,3874.0,0.07245179]
[1734263835971,2.58118,3874.2,3873.7,0.8122]
[1734263836276,2.58098,3874.5,3874.1,0.07228462]
[1734263836477,2.58098,3874.5,3873.8,1.07672312]
[1734263836687,0.8023,3874.7,3874.2,0.0723842]
[1734263836983,2.58054,3875.2,3874.3,0.88455922]
[1734263836984,2.58065,3875.0,3874.3,0.88455922]
[1734263837284,2.58071,3874.9,3874.3,0.88455922]
[1734263837446,2.58071,3874.9,3874.4,2.22227762]
[1734263837778,0.8023,3875.5,3874.5,0.07223019]
[1734263837956,2.58039,3875.4,3874.6,4.11120074]
[1734263838156,2.58039,3875.4,3874.7,2.22227762]
[1734263838363,2.58039,3875.4,3874.8,2.22227762]
[1734263838559,2.58049,3875.3,3874.8,0.07211876]
[1734263838760,2.58049,3875.3,3874.6,1.88892312]
[1734263838960,2.58049,3875.3,3874.9,0.07221538]
[1734263839166,2.58049,3875.3,3874.6,1.88892312]
[1734263839358,2.58049,3875.3,3875.0,0.07189784]
[1734263839574,2.58049,3875.3,3874.6,1.88892312]
[1734263839761,2.58049,3875.3,3875.1,0.07183969]
[1734263839972,2.58049,3875.3,3874.6,1.88892312]
[1734263840218,2.58049,3875.3,3875.2,0.07176574]
[1734263840482,2.58049,3875.3,3874.6,1.88892312]
[1734263840699,2.58049,3875.3,3874.7,2.57250365]
[1734263840899,2.58049,3875.3,3874.8,2.29399845]
[1734263841202,2.58049,3875.3,3874.8,0.07189558]
[1734263843189,2.5803,3875.6,3874.8,0.07189558]
[1734263846582,2.5803,3875.6,3874.9,0.8122]
[1734263846974,2.5803,3875.6,3875.0,0.07142632]
[1734263850666,2.58018,3875.7,3875.0,0.07142632]
[1734263850869,2.97124851,3875.7,3875.0,0.07142632]
[1734263853378,0.39106851,3875.7,3875.0,0.07142632]
[1734263853679,0.8023,3875.8,3875.0,0.07142632]
[1734263853878,2.58035,3875.5,3874.6,0.7745]
[1734263854280,2.58035,3875.5,3874.7,0.07146264]
[1734263857424,2.58018,3875.7,3874.8,1.6626193]
[1734263857593,2.58018,3875.7,3874.8,0.7745]
[1734263857805,2.58018,3875.7,3875.0,0.7745]
[1734263858181,2.58018,3875.7,3875.1,0.0713065]
[1734263861517,0.8023,3875.8,3875.1,0.0713065]
[1734263861694,3.10825508,3875.9,3875.2,0.7745]
[1734263862095,3.10825508,3875.9,3875.3,0.07114496]
[1734263862290,3.10825508,3875.9,3875.2,0.7745]
[1734263862686,3.10825508,3875.9,3875.3,0.0711252]
[1734263862891,3.81790448,3875.9,3875.2,0.7745]
[1734263863087,3.81790448,3875.9,3875.3,0.071141]
[1734263863795,3.81479786,3875.9,3875.3,0.071141]
[1734263864005,3.10514846,3875.9,3875.3,0.071141]
[1734263866306,2.58005,3875.9,3875.3,0.071141]
[1734263866942,0.7525,3876.1,3875.3,0.071141]
[1734263867107,2.57992,3876.1,3875.4,0.7745]
[1734263867307,2.57992,3876.1,3875.5,0.07096916]
[1734263868343,2.57998,3876.0,3875.5,0.07096916]
[1734263868491,2.57998,3876.0,3875.2,0.7745]
[1734263868697,2.57998,3876.0,3875.3,0.0707542]
[1734263869909,0.7525,3876.1,3875.3,0.0707542]
[1734263870111,2.58006,3875.9,3875.3,0.0707542]
[1734263870958,2.58006,3875.9,3875.4,0.7667]
[1734263871139,2.58006,3875.9,3875.4,0.83740357]
[1734263871468,3.08782928,3876.2,3875.4,0.83740357]
[1734263871667,2.57991,3876.1,3875.4,0.83740357]
[1734263871869,2.57991,3876.1,3875.4,1.04732847]
[1734263872223,3.35116,3876.4,3875.5,0.7667]
[1734263872568,3.10145597,3876.3,3875.5,0.83735788]
[1734263872726,2.57979,3876.3,3875.5,0.83735788]
[1734263874423,2.57964,3876.6,3875.5,0.83735788]
[1734263874545,2.57964,3876.6,3875.7,0.7667]
[1734263874749,2.57964,3876.6,3875.8,0.88841087]
[1734263874995,2.57964,3876.6,3875.9,0.8883563]
[1734263875201,2.57925,3877.1,3876.0,0.7667]
[1734263875341,0.50350133,3877.2,3876.0,0.7667]
[1734263875342,2.57919,3877.2,3876.2,0.7667]
[1734263875546,2.57919,3877.2,3876.3,0.88782383]
[1734263875742,2.57919,3877.2,3876.4,0.7667]
[1734263875988,2.57919,3877.2,3876.4,0.836317]
[1734263876349,2.57905,3877.4,3876.4,0.836317]
[1734263876691,2.57905,3877.4,3876.6,0.7667]
[1734263877044,2.57912,3877.3,3876.7,0.06949486]
[1734263883308,2.57912,3877.3,3876.8,0.8198]
[1734263886170,2.57912,3877.3,3876.9,0.06734229]
[1734263886692,2.57912,3877.3,3876.8,0.8198]
[1734263887079,2.57912,3877.3,3876.9,0.06639486]
[1734263887285,2.57887,3877.7,3877.0,0.8198]
[1734263887813,2.57887,3877.7,3877.1,0.06621965]
[1734263889478,2.57872,3877.9,3877.1,0.06621965]
[1734263889679,2.57876,3877.9,3877.1,0.06621965]
[1734263889906,2.57876,3877.9,3877.0,0.8198]
[1734263890220,2.57876,3877.9,3877.1,0.06474334]
[1734263890423,2.57876,3877.9,3877.2,0.7907]
[1734263890802,2.57879,3877.8,3877.3,0.06464659]
[1734263891125,2.57879,3877.8,3877.2,0.7907]
[1734263891619,1.27720068,3878.2,3877.3,0.06464659]
[1734263891825,0.38556207,3878.1,3877.3,0.06464659]
[1734263891985,0.38556207,3878.1,3876.2,2.57984]
[1734263891986,2.57923,3877.2,3876.2,0.7907]
[1734263892386,2.57923,3877.2,3876.3,0.06486603]
[1734263892638,3.36762,3877.6,3876.4,0.7907]
[1734263892639,2.57928,3877.1,3876.4,0.7907]
[1734263892985,2.57928,3877.1,3876.5,0.06478461]
[1734263893216,2.57928,3877.1,3876.6,0.7907]
[1734263893391,2.57928,3877.1,3876.6,0.85550313]
[1734263893597,2.57864,3878.0,3876.6,0.85550313]
[1734263893598,0.52831102,3877.9,3876.6,0.85550313]
[1734263893797,2.57892,3877.6,3876.6,0.85550313]